Cogmind - Beta 13 @@@ ROGUE MODE // 2024.04.29 @ 13:58:54 Player: MO-55 Result: Destroyed by WX-BI0(R) with Subdweller Machine Gun Performance ------------- Evolutions (0) 0 Regions Visited (2) 400 Robots Destroyed (26) 130 Value Destroyed (412) 412 Prototype IDs (0) 0 Alien Tech Used (0) 0 Bonus (0) 0 TOTAL SCORE: 942 Bonus ------- None Cogmind --------- Core Integrity 0/250 Matter 42/300 Energy 100/100 System Corruption 1% Temperature Cool (0) Movement Treading (160) Location -10/Subcaves Parts ------- > --- POWER (1) -------- (None) > --- PROPULSION (2) --- Light Treads Light Treads > --- UTILITY (2) ------ Large Storage Unit > --- WEAPON (2) ------- Subdweller Machine Gun Battle Cannon > --- INVENTORY (15) --- Ion Engine Light Treads Light Treads Light Treads Light Treads Light Treads High-capacity Storage Unit Improved Terrain Scanner Seismic Detector Assault Rifle Subdweller Machine Gun Grenade Launcher Mining Laser Peak State ------------ > --- POWER ------------ Makeshift Power Source > --- PROPULSION ------- Light Treads Light Treads > --- UTILITY ---------- Large Storage Unit Propulsion Shielding > --- WEAPON ----------- Subdweller Machine Gun Battle Cannon > --- INVENTORY -------- Ion Engine Subdweller Power Source Light Treads Light Treads Light Treads Light Treads Light Treads High-capacity Storage Unit Improved Terrain Scanner Seismic Detector Assault Rifle Grenade Launcher Mining Laser [Rating: 13] Favorites ----------- Power Makeshift Power Source Engine Makeshift Power Source Propulsion Light Treads Treads Light Treads Leg Aluminum Leg Utility Large Storage Unit Device Seismic Detector Storage Large Storage Unit Protection Propulsion Shielding Weapon Subdweller Machine Gun Energy Gun Medium Laser Ballistic Gun Subdweller Machine Gun Ballistic Cannon Battle Cannon Special Weapon Mining Laser Build | -11 -10 -10 ------- Run | Yrd Mat Sub Slots Evolved . | . . . Power . | . . . Propulsion . | . . . Utility . | . . . Weapon . | . . . Parts Attached 34 | 7 12 15 Power 4 | 1 1 2 Engine 4 | 1 1 2 Core . | . . . Reactor . | . . . Propulsion 8 | 2 6 . Treads 4 | . 4 . Leg 4 | 2 2 . Wheel . | . . . Hover . | . . . Flight . | . . . Utility 9 | 2 2 5 Device 3 | 1 . 2 Storage 3 | 1 2 . Processor . | . . . Hackware . | . . . Protection 3 | . . 3 Artifact . | . . . Weapon 13 | 2 3 8 Energy Gun 2 | . 2 . Energy Cannon . | . . . Ballistic Gun 8 | 2 1 5 Ballistic Cannon 2 | . . 2 Launcher . | . . . Special Weapon 1 | . . 1 Impact Weapon . | . . . Slashing Weapon . | . . . Piercing Weapon . | . . . Special Melee Weapon . | . . . Unidentified Prototypes . | . . . Parts Lost 3 | . 1 2 Power 2 | . 1 1 Propulsion . | . . . Utility 1 | . . 1 Weapon . | . . . Highest Loss Streak 2 | . 1 2 To Critical Strikes . | . . . Average Slot Usage (%) 99 | . 99 99 Engine 13 | . 13 14 Treads 22 | . 11 28 Leg 5 | . 16 . Device 10 | . 14 8 Storage 14 | . 14 14 Protection 3 | . . 5 Energy Gun 4 | . 13 . Ballistic Gun 17 | . 14 19 Ballistic Cannon 5 | . . 7 Naked Turns . | . . . Heaviest Build 34 | 12 28 34 Greatest Support 40 | 20 40 40 Greatest Overweight (x) 9 | . 9 . Average Overweight (x) . | . . . Largest Inventory Capacity 15 | 8 15 15 Average Capacity 13 | 7 12 15 Most Carried 13 | 5 12 13 Average Carried 11 | 2 9 12 Final Capacity 15 | 8 15 15 Final Carried 13 | 5 12 13 Class Distribution -------------------- 100% | Mutant Dominant Class ---------------- Mutant | -10/Materials Mutant | -10/Subcaves Resources | -11 -10 -10 ----------- Run | Yrd Mat Sub Matter Collected 758 | 235 195 328 Remotely . | . . . Salvage Created 573 | 12 353 208 Parts 58 | 6 30 22 Haulers Intercepted 1 | . 1 . Recyclers Shooed . | . . . Parts Field Recycled . | . . . Retrieved Matter . | . . . Parts Self-Destructed 17 | . . 17 Prevented . | . . . Kills | -11 -10 -10 ------- Run | Yrd Mat Sub Combat Hostiles Destroyed 20 | . 8 12 Guns 18 | . 8 10 Cannons 2 | . . 2 Classes Destroyed 7 | 1 5 1 Worker 1 | . 1 . Tunneler 3 | 1 2 . Hauler 1 | . 1 . Mechanic 1 | . 1 . Swarmer 14 | . 5 9 Grunt 3 | . 3 . Subdweller 3 | . . 3 Best Kill Streak 3 | 1 3 3 Combat Bots Only 3 | . 3 3 Max Kills in Single Turn 2 | 1 2 1 Gunslinging . | . . . Exploded . | . . . Melee . | . . . Uniques/NPCs Destroyed . | . . . Combat | -11 -10 -10 -------- Run | Yrd Mat Sub Hostile Shots Fired 163 | . 66 97 Missed 48 | . 15 33 Damage Taken 1122 | . 511 611 Core 272 | . 147 125 Absorbed by Shields . | . . . Redirected to Shielding 53 | . . 53 Core Remaining (%) 100 | 100 . . Volleys Fired 133 | 1 45 87 Largest 2 | 2 2 2 Hottest 100 | 40 70 100 Shots Fired 208 | 2 90 116 Gun 154 | 2 90 62 Cannon 41 | . . 41 Launcher . | . . . Special 13 | . . 13 Kinetic 150 | 2 45 103 Thermal 58 | . 45 13 Explosive . | . . . Electromagnetic . | . . . Robot Hit Streak 10 | 1 8 10 Robot Miss Streak 6 | . 6 5 Penetration Max . | . . . Secondary Targets 1 | . . 1 Max Gunslinging Chain 1 | . . 1 Shots Hit Robots 85 | 1 55 29 Core Hits 36 | 1 20 15 Critical Kills 1 | . 1 . Critical Parts Destroyed . | . . . Critical Strikes 7 | . 6 1 Burn 5 | . 5 . Destroy 2 | . 1 1 Melee Attacks . | . . . Impact . | . . . Slashing . | . . . Piercing . | . . . Sneak Attacks . | . . . Combat Hostiles . | . . . Follow-up Attacks . | . . . Damage Inflicted 1296 | 12 711 573 Guns 1157 | 12 711 434 Cannons 139 | . . 139 Explosions . | . . . Melee . | . . . Ramming . | . . . Kinetic 974 | 12 389 573 Thermal 322 | . 322 . Explosive . | . . . Electromagnetic . | . . . Impact . | . . . Slashing . | . . . Piercing . | . . . Highest Corruption 1 | . 1 1 Average Corruption 1 | . 1 1 Corruption Purged . | . . . Corruption Blocked . | . . . Effects 14 | . 4 10 Message Errors 2 | . . 2 Matter Fused 2 | . 1 1 Heat Flow Errors 2 | . 1 1 Energy Discharges 4 | . 2 2 Data Loss (minor) 2 | . . 2 Data Loss (major) 1 | . . 1 Misfires 1 | . . 1 Overload Shots . | . . . Overflow Damage . | . . . Projectiles . | . . . Explosions . | . . . Melee . | . . . Knockbacks 2 | . . 2 Impact . | . . . Kinetic 2 | . . 2 Secondary . | . . . Self-Inflicted Damage . | . . . Shots . | . . . Rammed . | . . . Targets Rammed . | . . . Kicked . | . . . Crushed . | . . . Highest Temperature 202 | . 202 201 Average Temperature 54 | . 52 116 Received Heat Transfer 237 | . 171 66 Siege Activations . | . . . Robots Corrupted . | . . . Combat Hostiles . | . . . Parts Fried . | . . . Impact Corruptions . | . . . Robots Melted . | . . . Combat Hostiles . | . . . Parts Melted 1 | . 1 . Heat Transferred 1332 | . 1332 . Parts Sabotaged . | . . . Parts Stolen . | . . . Parts Stripped . | . . . Power Chain Reactions . | . . . Alert | -11 -10 -10 ------- Run | Yrd Mat Sub Peak Influence 168 | 5 168 . Initial 3 | . 3 . Average 54 | 1 58 . Maximum Alert Level . | . . . Low Security (%) 100 | 100 100 . Level 1 . | . . . Level 2 . | . . . Level 3 . | . . . Level 4 . | . . . Level 5 . | . . . High Security . | . . . Max Security . | . . . Squads Dispatched 1 | . 1 . Investigation 1 | . 1 . Extermination . | . . . Reinforcement . | . . . Assault . | . . . Garrison . | . . . Intercept . | . . . Searches Triggered . | . . . Construction Impeded . | . . . Haulers Reinforced . | . . . Active Scanning Responses . | . . . Cargo Convoy Interrupts . | . . . Stealth | -11 -10 -10 --------- Run | Yrd Mat Sub Distress Signals 2 | . 2 . Communications Jammed . | . . . Distress Signals . | . . . Times Spotted 48 | . 20 28 Peak Tracking Total 6 | . 6 4 Tactical Retreats 3 | . 1 2 Traps | -11 -10 -10 ------- Run | Yrd Mat Sub Traps Triggered 4 | . 4 . Indirectly . | . . . Trap Hack Attempts . | . . . Triggered . | . . . Disarmed . | . . . Reprogrammed . | . . . Reused . | . . . Traps Extracted . | . . . Installed . | . . . Triggered . | . . . Machines | -11 -10 -10 ---------- Run | Yrd Mat Sub Machines Disabled . | . . . Max in Single Turn . | . . . Machines Repaired . | . . . Machines Dismantled . | . . . Machines Sabotaged . | . . . Overloaded Fab Kills . | . . . Hacking | -11 -10 -10 --------- Run | Yrd Mat Sub Machines Accessed 8 | . 8 . Terminals 8 | . 8 . Fabricators . | . . . Repair Stations . | . . . Recycling Units . | . . . Scanalyzers . | . . . Garrison Access . | . . . Total Hacks 16 | . 16 . Successful 4 | . 4 . Failed 11 | . 11 . Catastrophic 5 | . 5 . Database Lockouts 1 | . 1 . Manual 16 | . 16 . Terminals 16 | . 16 . Fabricators . | . . . Repair Stations . | . . . Recycling Units . | . . . Scanalyzers . | . . . Garrison Access . | . . . Terminal Hacks 3 | . 3 . Part Schematic 2 | . 2 . Terminal Index 1 | . 1 . Fabricator Hacks . | . . . Repair Station Hacks . | . . . Recycling Unit Hacks . | . . . Scanalyzer . | . . . Garrison Access Hacks . | . . . Unauthorized Hacks 1 | . 1 . Terminals 1 | . 1 . Botnet 1 | . 1 . Fabricators . | . . . Repair Stations . | . . . Recycling Units . | . . . Scanalyzers . | . . . Garrison Access . | . . . Data Cores Recovered . | . . . Used . | . . . Hacking Detections 7 | . 7 . Full Trace Events 2 | . 2 . Feedback Events 1 | . 1 . Corruption 1 | . 1 . Feedback Blocked . | . . . Robot Schematics Acquired . | . . . Robots Built . | . . . Authchips . | . . . Time . | . . . Total Robot Build Rating . | . . . Part Schematics Acquired 2 | . 2 . Parts Built . | . . . Authchips . | . . . Time . | . . . Total Part Build Rating . | . . . Parts Repaired . | . . . Time . | . . . Parts Recycled . | . . . Recycled Matter . | . . . Retrieved Matter . | . . . Retrieved Components . | . . . Parts Scanalyzed . | . . . Part Schematics Acquired . | . . . Parts Damaged . | . . . Bothacking | -11 -10 -10 ------------ Run | Yrd Mat Sub Used RIF Installer . | . . . Robots Hacked . | . . . Non-combat . | . . . Combat . | . . . Robot Hacks Applied . | . . . Relay Couplers Released . | . . . Fabnet Peak Effective % . | . . . Robots Rewired . | . . . Allies Hacked . | . . . Hacks Repelled . | . . . Allies | -11 -10 -10 -------- Run | Yrd Mat Sub Total Allies . | . . . Largest Group . | . . . Highest-Rated Group . | . . . Highest-Rated Ally . | . . . Total Orders . | . . . Ally Attacks . | . . . Total Damage . | . . . Kills . | . . . Allies Corrupted . | . . . Allies Melted . | . . . Intel | -11 -10 -10 ------- Run | Yrd Mat Sub Robot Analysis Total . | . . . Derelict Logs Recovered . | . . . Drone Launches . | . . . Drone Recoveries . | . . . Exploration | -11 -10 -10 ------------- Run | Yrd Mat Sub Turns Passed 3045 | 71 993 1981 Spaces Moved 1613 | 48 520 1045 Core 7 | 6 1 . Treads 1195 | . 150 1045 Legs 411 | 42 369 . Wheels . | . . . Hover . | . . . Flight . | . . . Fastest Speed 50 | 50 120 160 Average Speed 150 | 111 134 160 Slowest Speed 500 | 120 500 160 Overloaded Moves . | . . . Propulsion Burnouts . | . . . Robots Hopped . | . . . Cave-ins Triggered . | . . . Exploration Rate (%) 46 | 3 94 43 Regions Visited 2 Branch Regions 1 Pre-discovered Areas . | . . . Known Exits Taken . | . . . Unknown Exits Taken 2 | 1 1 . Scrap Searched 2 | . . 2 Spaces Dug 18 | . . 18 Terrain Destroyed 23 | . . 23 Melee . | . . . Projectile 23 | . . 23 AOE . | . . . Terrain Rammed . | . . . Walls Destroyed . | . . . Machines Disabled . | . . . Actions | -11 -10 -10 --------- Run | Yrd Mat Sub Total 1991 | 60 723 1208 Wait 183 | . 129 54 Move 1611 | 47 519 1045 Hop . | . . . Pick Up 16 | 5 10 1 Fast Attach 16 | 7 5 4 Attach 1 | . 1 . Detach 2 | . 1 1 Swap 17 | . 6 11 Drop 12 | . 7 5 Fire 133 | 1 45 87 Melee . | . . . Ram . | . . . Kick . | . . . Crush . | . . . Escape Stasis . | . . . Rewire . | . . . Trap . | . . . Miscellaneous . | . . . Route ------- -11/Scrapyard -10/Materials (discovered 6 exits: [*Mat x3] / [*Min x2] / *Sub) -10/Subcaves (discovered 3 exits: [*Mat x2] / [*Rec]) History --------- Turn | Location | Event 4 | -11/Scrapyard | Discovered new exit (range 15) 72 | -11/Scrapyard | Entered Materials 72 | -10/Materials | Discovered new exit (range 7) 206 | -10/Materials | Discovered new exit (range 9) 317 | -10/Materials | Build established: Mutant 410 | -10/Materials | Discovered new exit (range 14) 533 | -10/Materials | Discovered new exit (range 7) 622 | -10/Materials | Core integrity fell below 50% 694 | -10/Materials | Discovered new exit (range 7) 790 | -10/Materials | Central database locked down 1043 | -10/Materials | Discovered new exit (range 4) 1065 | -10/Materials | Entered Subcaves 1176 | -10/Subcaves | A swath of the cavern ceiling suddenly collapsed 1421 | -10/Subcaves | Visited Clippyterm 1563 | -10/Subcaves | Shifting Twisted Machinery released Unknown Ballistic Cannon 1584 | -10/Subcaves | Shifting Twisted Machinery released Mak. Power Source 2059 | -10/Subcaves | Discovered new exit (range 14) 2879 | -10/Subcaves | Discovered new exit (range 16) 2883 | -10/Subcaves | Core integrity fell below 20% 3006 | -10/Subcaves | Discovered new exit (range 12) 3023 | -10/Subcaves | Ambushed by Subdwellers from Twisted Machinery 3046 | -10/Subcaves | Destroyed by WX-BI0(R) with Subdweller Machine Gun Last Messages --------------- 02879_ EXIT=FOUND 02891_ S-10 Pest knocked back. 02897_ Destroyed Lgt. Ion Engine. 02897_ S-10 Pest destroyed. 02904_ Flight Unit fries itself beyond repair. 02904_ Acquired 2 matter. 02908_ Lgt. Ion Engine fries itself beyond repair. 02913_ Subatomizers dissect the Flight Unit. 02915_ Flight Unit fries itself beyond repair. 03006_ EXIT=FOUND 03010_ System corrupted: Energy discharge (-45). 03023_ QQ-ICF(R) emerges from the Twisted Machinery. WX-BI0(R) emerges from concealment. 03040_ Mak. Power Source destroyed. 03043_ NI-68X(R) destroyed. 03044_ Propulsion Shielding destroyed. 03045_ Acquired 36 matter. Map ----- +----------------------------------------------------+ | ?????????????????????????????????????????????????? | | ?????????????????????????????????????????????????? | | ?????????????????????????????????????????????????? | | ?????????????????????????????????????????????????? | | ?????????????????????????????????????????????????? | | ?????????????????????????????????????????????????? | | ?????????????????????????????????????????????????? | | ?????????????????????????????????????????????????? | | ?????????????????????????????????????????????????? | | ?????????????????????????????????????????????????? | | ?????????????????????????????????????????????????? | | ?????????????????????????????????????????????????? | | ?????????????????????????????????????????????????? | | ???????????????????? ???? #?????????????????????? | | ??????????????????? ?? ?????????????????????? | | ?????????????????? ?? #??###???????????????? | | ????????????????# ?? #?# ##??????????????? | | ????????????????" ?? ## #??????????????? | | ???????????????"" " ??? #??????????????? | | ???????????????" " ??? #???????????????? | | ????????????????# "" ?## #????????????????? | | ????????????????# " ## #?????????????????? | | ????????????????# " #??????????????????? | | ????????????????# " R ## #??????????????????? | | ????????????????#"" [## #???????????????????? | | ???????????????##" < &@* #???????????????????? | | ???????????##### " !R= #???????????????????? | | ???????????# #####???????????????? | | ???????????# #???????????????? | | ???????????## ##???????????????? | | ????????????# # # #??????? ???? | | ???????????# ####### #????? ??? | | ??????????# ########????# ##???? ?? | | ?????????# #???????????### #???? ??? | | ????????? ??????????????# #????? ??? | | ????????? ????????????????# ##????? ???? | | ???????????????????#### ## # #??????? ??"" | | ???????????????????# ###????? #??" | | ??????????????????# #####?# ###" | | ??????????????????## #### # ### ## | | ???????????????????# ???# ####### #? #?? | | ??????????????????????? ??????## ### #??? | | ????????????????????? #???????## ## ###?? | | ???????????????????? ## #????????## ##? | | ??????????????????? ??###????????## ## | | ???????????????????????????#####?# # | | ???????????????????????????# ### ##### ## | | ??????????????????????????## ## #???### ##? | | ??????????????????????????# ######????# ##? | | ????????????? ### #?????????## ## | +----------------------------------------------------+ Best States ------------- Heat Dissipation 25 Energy Generation 15 Energy Capacity 200 Matter Stores 300 Matter Capacity 300 Sight Range 16 Terrain Scan Density 10 Propulsion Shielding 33 Evasion (%) 55 Recoil Reduction 2 Item Schematics ----------------- Huge Storage Unit | -10/Materials | Hacked Hcp. Storage Unit | -10/Materials | Hacked Robot Schematics ------------------ None Fabricated ------------ Nothing Alien Tech Used ----------------- None Achievements -------------- None Challenges ------------ None Game ------ Seed SignalDecoyInitializer Manual? 0 Play Time 00:17:16 Cumulative 120.0 hours Start 2024.04.29 @ 13:42:58 End 2024.04.29 @ 13:58:54 Sessions 1 Manual Loads 0 Difficulty Rogue Special Mode None Game No. 97 Rogue 97 Adventurer 0 Explorer 0 Win Type - Total 3 Types 2/0/1/0/0/0/0/0/0 Lore% 51 Gallery% 67 Achievement% 53 Wizard Run 0 Options --------- Layout 2 ASCII 0 Keyboard 0 Movement Mouse Keybinds 1 Fullscreen 2 Font 32/SmallcapsGlow Map View 50x44 Zoom Use 0% Tactical HUD 1 Map Filters NONE Filters NONE Steam 1 RUN: 89fdb394-43a6-42b2-a03d-3a3bdc350ffa